Cogmind - Beta 15 --- EXPLORER MODE // 2025.07.16 @ 20:31:20 Player: viper Result: Destroyed by Y-54 Guardian with Gatling Laser Performance ------------- Evolutions (0) 0 Regions Visited (3) 600 Robots Destroyed (36) 180 Value Destroyed (1036) 1036 Prototype IDs (3) 60 Alien Tech Used (0) 0 Bonus (0) 0 TOTAL SCORE: 1876 Bonus ------- None Cogmind --------- Core Integrity 0/250 Matter 291/300 Energy 364/370 System Corruption 1% Temperature Cool (15) Movement Walking (260) Ox2 Location -7/Recycling Parts ------- > --- POWER (2) -------- Improved Deuterium Engine Meta Core > --- PROPULSION (2+1) - Aluminum Leg Aluminum Leg (+) Improved Carbon-fiber Leg > --- UTILITY (2+1) ---- High-capacity Storage Unit Core Shielding (+) Makeshift Thermal Plating > --- WEAPON (2+1) ----- Subdweller Beam Cannon Subdweller Machine Gun Subdweller Machine Gun (+) > --- INVENTORY (20) --- Ion Engine Ion Engine Light Ion Engine Subdweller Power Source Aluminum Leg Aluminum Leg Aluminum Leg Medium Matter Pod (100) Medium Matter Pod (100) Medium Matter Pod (100) Makeshift System Restoration Module Assault Rifle Light Assault Rifle Subdweller Machine Gun Gauss Rifle Dirty Datajack (20) Datajack Multitool Peak State ------------ > --- POWER ------------ Improved Deuterium Engine Meta Core > --- PROPULSION ------- Aluminum Leg Aluminum Leg Improved Carbon-fiber Leg > --- UTILITY ---------- High-capacity Storage Unit Core Shielding Makeshift Thermal Plating > --- WEAPON ----------- Subdweller Beam Cannon Subdweller Machine Gun Subdweller Machine Gun > --- INVENTORY -------- Ion Engine Ion Engine Light Ion Engine Subdweller Power Source Aluminum Leg Aluminum Leg Aluminum Leg Medium Matter Pod Medium Matter Pod Medium Matter Pod Makeshift System Restoration Module Assault Rifle Light Assault Rifle Subdweller Machine Gun Gauss Rifle Dirty Datajack Datajack Multitool [Rating: 38] Favorites ----------- Power Ion Engine Engine Ion Engine Power Core Meta Core Propulsion Aluminum Leg Leg Aluminum Leg Utility High-capacity Storage Unit Device Terrain Scanner Storage High-capacity Storage Unit Protection Makeshift Thermal Plating Weapon Assault Rifle Energy Cannon Subdweller Beam Cannon Ballistic Gun Assault Rifle Ballistic Cannon Light Cannon Special Weapon Multitool Special Melee Weapon Datajack Build | -11 -10 -10 -7 ------- Run | Yrd Mat Sub Rec Slots Evolved 1 | . 1 . . Power 1 | . 1 . . Propulsion . | . . . . Utility . | . . . . Weapon . | . . . . Parts Attached 33 | 7 7 17 2 Power 9 | 1 2 5 1 Engine 8 | 1 2 4 1 Core 1 | . . 1 . Reactor . | . . . . Propulsion 8 | 2 2 3 1 Treads . | . . . . Leg 8 | 2 2 3 1 Wheel . | . . . . Hover . | . . . . Flight . | . . . . Utility 6 | 2 1 3 . Device 2 | 1 . 1 . Storage 2 | 1 1 . . Processor . | . . . . Hackware . | . . . . Protection 2 | . . 2 . Artifact . | . . . . Weapon 10 | 2 2 6 . Energy Gun . | . . . . Energy Cannon 1 | . . 1 . Ballistic Gun 6 | 2 . 4 . Ballistic Cannon 1 | . 1 . . Launcher . | . . . . Special Weapon 1 | . . 1 . Impact Weapon . | . . . . Slashing Weapon . | . . . . Piercing Weapon . | . . . . Special Melee Weapon 1 | . 1 . . Unidentified Prototypes 1 | . . 1 . Parts Lost 10 | . . 10 . Power 2 | . . 2 . Propulsion 3 | . . 3 . Utility 2 | . . 2 . Weapon 3 | . . 3 . Highest Loss Streak 6 | . . 6 . To Critical Strikes . | . . . . Average Backups 13 | . 8 14 17 Power 1 | . . 1 3 Propulsion 3 | . 2 4 2 Utility 4 | . 3 5 4 Weapon 2 | . 1 2 3 Tool/Special . | . . . . Unused Backups 9 | . . . 9 Power 1 | . . . 1 Propulsion 1 | . . . 1 Utility 4 | . . . 4 Weapon 3 | . . . 3 Tool/Special . | . . . . Average Slot Usage (%) 97 | . 100 96 99 Engine 19 | . 25 19 8 Core 2 | . . 1 9 Leg 25 | . 25 24 27 Device 8 | . 12 8 . Storage 11 | . 12 11 9 Protection 5 | . . 4 18 Energy Cannon 1 | . . . 9 Ballistic Gun 15 | . 21 14 18 Ballistic Cannon 6 | . 3 7 . Special Weapon 1 | . . 2 . Peak Build Rating 38 | 7 9 32 38 Average Rating 15 | 5 8 14 36 On Entrance 12 | . 7 9 32 Naked Turns . | . . . . Heaviest Build 77 | 20 54 72 77 Greatest Support 38 | 20 20 30 38 Greatest Overweight (x) 5 | 1 2 5 3 Average Overweight (x) 1 | . 1 2 2 Largest Inventory Capacity 20 | 10 20 20 20 Average Capacity 19 | 8 17 20 20 Most Carried 20 | 2 14 20 18 Average Carried 13 | . 8 14 17 Final Capacity 20 | 10 20 20 20 Final Carried 18 | 2 14 16 18 Class Distribution -------------------- 75% | Hacker-Mutant 24% | Hacker-Tank Dominant Class ---------------- Hacker-Mutant | -10/Materials Hacker-Mutant | -10/Subcaves Hacker-Tank | -7/Recycling Resources | -11 -10 -10 -7 ----------- Run | Yrd Mat Sub Rec Matter Collected 1620 | 212 747 526 135 Remotely . | . . . . Salvage Created 1239 | . 783 390 66 Parts 76 | . 47 26 3 Haulers Intercepted 2 | . 2 . . Recyclers Shooed 1 | . 1 . . Parts Field Recycled . | . . . . Retrieved Matter . | . . . . Parts Self-Destructed . | . . . . Prevented . | . . . . Kills | -11 -10 -10 -7 ------- Run | Yrd Mat Sub Rec Combat Hostiles Destroyed 25 | . 11 13 1 Guns 18 | . 10 8 . Cannons 6 | . 1 4 1 Classes Destroyed 9 | . 5 4 . Builder 2 | . 2 . . Hauler 2 | . 2 . . Recycler 2 | . 2 . . Turret 2 | . . 2 . Watcher 3 | . 3 . . Swarmer 3 | . . 3 . Grunt 11 | . 11 . . Sentry 2 | . . 1 1 Subdweller 9 | . . 9 . Best Kill Streak 5 | . 5 4 1 Combat Bots Only 3 | . 3 3 1 Max Kills in Single Turn 2 | . 1 2 1 Gunslinging . | . . . . Exploded . | . . . . Melee . | . . . . Uniques/NPCs Destroyed . | . . . . Combat | -11 -10 -10 -7 -------- Run | Yrd Mat Sub Rec Hostile Shots Fired 227 | . 56 150 21 Missed 67 | . 19 43 5 Hits 160 | . 37 107 16 Projectile 160 | . 37 107 16 Critical Strikes 1 | . . 1 . Damage Taken 1644 | . 318 1258 68 Core 250 | . 59 184 7 Absorbed by Shields . | . . . . Redirected to Shielding 5 | . . 4 1 Ignored by Resistances 997 | . 197 741 59 Core Remaining (%) 100 | 100 . . . Volleys Fired 123 | . 55 66 2 Largest 3 | . 2 3 3 Hottest 140 | . 50 140 140 Shots Fired 256 | . 110 140 6 Gun 209 | . 108 97 4 Cannon 34 | . 2 30 2 Launcher . | . . . . Special 13 | . . 13 . Kinetic 233 | . 110 119 4 Thermal 23 | . . 21 2 Explosive . | . . . . Electromagnetic . | . . . . Robot Hit Streak 25 | . 25 17 7 Robot Miss Streak 2 | . 1 2 . Penetration Max . | . . . . Secondary Targets 4 | . 3 1 . Max Gunslinging Chain 1 | . 1 1 . Shots Hit Robots 193 | . 97 92 4 Core Hits 63 | . 38 23 2 Critical Kills 1 | . . 1 . Critical Parts Destroyed 1 | . . 1 . Critical Strikes 6 | . . 6 . Meltdown 1 | . . 1 . Destroy 2 | . . 2 . Blast 3 | . . 3 . Melee Attacks 1 | . 1 . . Impact . | . . . . Slashing . | . . . . Piercing . | . . . . Sneak Attacks 1 | . 1 . . Combat Hostiles . | . . . . Follow-up Attacks . | . . . . Damage Inflicted 2903 | . 1239 1570 94 Guns 2352 | . 1205 1107 40 Cannons 534 | . 34 446 54 Explosions . | . . . . Melee . | . . . . Ramming . | . . . . Kinetic 2698 | . 1239 1419 40 Thermal 205 | . . 151 54 Explosive . | . . . . Electromagnetic . | . . . . Impact . | . . . . Slashing . | . . . . Piercing . | . . . . Highest Corruption 1 | . . . 1 Average Corruption 1 | . . . 1 Corruption Purged . | . . . . Corruption Blocked . | . . . . Effects 2 | . . . 2 Message Errors 1 | . . . 1 Matter Fused 1 | . . . 1 Overload Shots . | . . . . Overflow Damage . | . . . . Projectiles . | . . . . Explosions . | . . . . Melee . | . . . . Knockbacks 2 | . . 2 . Impact . | . . . . Kinetic 2 | . . 2 . Secondary . | . . . . Self-Inflicted Damage . | . . . . Shots . | . . . . Rammed . | . . . . Targets Rammed 1 | . 1 . . Kicked 1 | . 1 . . Crushed . | . . . . Highest Temperature 216 | . 38 152 216 Average Temperature 36 | . 12 48 115 Received Heat Transfer 901 | . 267 592 42 Effects 1 | . . . 1 Interference 1 | . . . 1 Siege Activations . | . . . . Martial Activations . | . . . . Shielding Activations . | . . . . Robots Disrupted . | . . . . Combat Hostiles . | . . . . Robots Corrupted . | . . . . Combat Hostiles . | . . . . Parts Fried . | . . . . Impact Corruptions . | . . . . Robots Melted 1 | . . 1 . Combat Hostiles 1 | . . 1 . Parts Melted 1 | . . 1 . Heat Transferred 309 | . . 235 74 Parts Sabotaged . | . . . . Parts Stolen . | . . . . Parts Stripped . | . . . . Power Chain Reactions . | . . . . Alert | -11 -10 -10 -7 ------- Run | Yrd Mat Sub Rec Maximum Alert Level . | . . . . Low Security (%) 100 | 100 100 . 100 Level 1 . | . . . . Level 2 . | . . . . Level 3 . | . . . . Level 4 . | . . . . Level 5 . | . . . . High Security . | . . . . Max Security . | . . . . Peak Influence 53 | . 53 . 35 Initial 14 | . . . 14 Average 7 | . 11 . 2 Influence Increases 553 | . 329 180 44 Destroy 0b10 Robot/C 360 | . 220 120 20 Destroy 0b10 Robot/NC 45 | . 45 . . Destroy Leader 50 | . 50 . . Successful Hack 37 | . 14 . 23 Destroy Structure 1 | . . . 1 Lose Combat Pursuer 60 | . . 60 . Influence Decreases 553 | . 329 140 84 Entered New Map 26 | . . . 26 Time Decay 527 | . 329 140 58 Squads Dispatched 2 | . 2 . . Investigation 2 | . 2 . . Extermination . | . . . . Reinforcement . | . . . . Assault . | . . . . Garrison . | . . . . Intercept . | . . . . Searches Triggered . | . . . . Construction Impeded . | . . . . Haulers Reinforced . | . . . . Active Scanning Responses . | . . . . Cargo Convoy Interrupts . | . . . . Stealth | -11 -10 -10 -7 --------- Run | Yrd Mat Sub Rec Distress Signals 2 | . 2 . . Communications Jammed . | . . . . Distress Signals . | . . . . Times Spotted 37 | . 17 18 2 Peak Tracking Total 5 | . 3 5 1 Tactical Retreats 3 | . . 3 . Traps | -11 -10 -10 -7 ------- Run | Yrd Mat Sub Rec Traps Triggered 2 | . 1 1 . Indirectly . | . . . . Trap Hack Attempts . | . . . . Triggered . | . . . . Disarmed 3 | . 3 . . Reprogrammed . | . . . . Reused . | . . . . Traps Extracted . | . . . . Installed . | . . . . Triggered . | . . . . Machines | -11 -10 -10 -7 ---------- Run | Yrd Mat Sub Rec Machines Disabled 3 | . 1 2 . Max in Single Turn 1 | . 1 1 . Machines Repaired . | . . . . Machines Dismantled . | . . . . Machines Sabotaged . | . . . . Overloaded Fab Kills . | . . . . Hacking | -11 -10 -10 -7 --------- Run | Yrd Mat Sub Rec Machines Accessed 7 | . 5 . 2 Terminals 7 | . 5 . 2 Fabricators . | . . . . Repair Stations . | . . . . Recycling Units . | . . . . Scanalyzers . | . . . . Garrison Access . | . . . . Total Hacks 32 | . 24 . 8 Successful 21 | . 18 . 3 Failed 11 | . 6 . 5 Catastrophic 2 | . . . 2 Database Lockouts . | . . . . Manual . | . . . . Terminals 32 | . 24 . 8 Fabricators . | . . . . Repair Stations . | . . . . Recycling Units . | . . . . Scanalyzers . | . . . . Garrison Access . | . . . . Terminal Hacks 21 | . 18 . 3 Record 6 | . 6 . . Prototype ID Bank 1 | . 1 . . Terminal Index 1 | . 1 . . Repair Station Index 1 | . 1 . . Recycling Unit Index 1 | . . . 1 Scanalyzer Index 1 | . . . 1 Locate Traps 2 | . 2 . . Disarm Traps 1 | . 1 . . Dispatch Records 1 | . 1 . . Maintenance Status 1 | . 1 . . Assault Status 1 | . 1 . . Hauler Manifests 1 | . 1 . . Zone Layout 3 | . 2 . 1 Fabricator Hacks . | . . . . Repair Station Hacks . | . . . . Recycling Unit Hacks . | . . . . Scanalyzer . | . . . . Garrison Access Hacks . | . . . . Unauthorized Hacks . | . . . . Terminals . | . . . . Fabricators . | . . . . Repair Stations . | . . . . Recycling Units . | . . . . Scanalyzers . | . . . . Garrison Access . | . . . . Data Cores Recovered . | . . . . Used . | . . . . Hacking Detections 7 | . 5 . 2 Full Trace Events 6 | . 4 . 2 Feedback Events 1 | . . . 1 Corruption 1 | . . . 1 Feedback Blocked . | . . . . Robot Schematics Acquired . | . . . . Robots Built . | . . . . Authchips . | . . . . Time . | . . . . Total Robot Build Rating . | . . . . Part Schematics Acquired . | . . . . Parts Built . | . . . . Authchips . | . . . . Time . | . . . . Total Part Build Rating . | . . . . Parts Repaired . | . . . . Time . | . . . . Parts Recycled . | . . . . Recycled Matter . | . . . . Retrieved Matter . | . . . . Retrieved Components . | . . . . Parts Scanalyzed . | . . . . Part Schematics Acquired . | . . . . Parts Damaged . | . . . . Bothacking | -11 -10 -10 -7 ------------ Run | Yrd Mat Sub Rec Used RIF Installer . | . . . . Robots Hacked . | . . . . Non-combat . | . . . . Combat . | . . . . Robot Hacks Applied . | . . . . Relay Couplers Released . | . . . . Fabnet Peak Effective % . | . . . . Robots Rewired . | . . . . Allies Hacked . | . . . . Hacks Repelled . | . . . . Allies | -11 -10 -10 -7 -------- Run | Yrd Mat Sub Rec Total Allies . | . . . . Largest Group . | . . . . Highest-Rated Group . | . . . . Highest-Rated Ally . | . . . . Total Orders . | . . . . Ally Attacks . | . . . . Total Damage . | . . . . Kills . | . . . . Allies Corrupted . | . . . . Allies Melted . | . . . . Intel | -11 -10 -10 -7 ------- Run | Yrd Mat Sub Rec Active Infowar (turns) 3320 | 46 865 2409 . Terrain 3320 | 46 865 2409 . Robot Analysis Total . | . . . . Derelict Logs Recovered . | . . . . Drone Launches . | . . . . Drone Recoveries . | . . . . Exploration | -11 -10 -10 -7 ------------- Run | Yrd Mat Sub Rec Turns Passed 4972 | 85 865 3474 548 Spaces Moved 1595 | 68 266 1056 205 Core 15 | 15 . . . Treads . | . . . . Legs 1580 | 53 266 1056 205 Wheels . | . . . . Hover . | . . . . Flight . | . . . . Fastest Speed 50 | 50 190 260 260 Average Speed 255 | 108 244 266 260 Slowest Speed 470 | 120 260 470 330 Overloaded Moves . | . . . . Propulsion Burnouts . | . . . . Robots Hopped . | . . . . Potential Cave-ins . | . . . . Cave-ins Triggered . | . . . . Exploration Rate (%) 39 | 4 32 66 55 Regions Visited 3 Branch Regions 2 Pre-discovered Areas 1 | . . 1 . Known Exits Taken 3 | 1 1 1 . Unknown Exits Taken . | . . . . Scrap Searched 1 | . . 1 . Spaces Dug . | . . . . Terrain Destroyed 1 | . . . 1 Melee . | . . . . Projectile 1 | . . . 1 AOE . | . . . . Terrain Rammed . | . . . . Walls Destroyed . | . . . . Machines Disabled . | . . . . Actions | -11 -10 -10 -7 --------- Run | Yrd Mat Sub Rec Total 2241 | 76 366 1583 216 Wait 458 | . 27 427 4 Move 1592 | 67 265 1055 205 Hop . | . . . . Pick Up 21 | 2 8 10 1 Fast Attach 11 | 7 1 3 . Attach 15 | . 1 13 1 Detach 2 | . 1 1 . Swap 13 | . 6 5 2 Drop 4 | . . 3 1 Fire 123 | . 55 66 2 Melee 1 | . 1 . . Ram . | . . . . Kick 1 | . 1 . . Crush . | . . . . Escape Stasis . | . . . . Rewire . | . . . . Trap . | . . . . Miscellaneous . | . . . . Route ------- -11/Scrapyard -10/Materials (discovered 3 exits: *Mat / *Min / *Sub) -10/Subcaves (discovered 3 exits: *Mat x2 / *Rec) -7/Recycling (discovered 1 exit: Fac) History --------- Turn | Location | Event 5 | -11/Scrapyard | Identified exit to Materials 5 | -11/Scrapyard | Discovered exit to Materials (range 16) 86 | -11/Scrapyard | Entered Materials 86 | -10/Materials | Evolved 1 slot: Power x1 236 | -10/Materials | Identified exit to Mines 236 | -10/Materials | Discovered exit to Mines (range 14) 308 | -10/Materials | Build established: Hacker-Mutant 393 | -10/Materials | Identified exit to Materials 393 | -10/Materials | Discovered exit to Materials (range 14) 909 | -10/Materials | Identified exit to Subcaves 909 | -10/Materials | Discovered exit to Subcaves (range 11) 951 | -10/Materials | Entered Subcaves 952 | -10/Subcaves | A swath of the cavern ceiling suddenly collapsed 952 | -10/Subcaves | Approached by a straggling Scientist 1256 | -10/Subcaves | Shifting Twisted Machinery released Mak. Thermal Plating 1258 | -10/Subcaves | Shifting Twisted Machinery released Shrapnel Trap 1420 | -10/Subcaves | Learned location of Zion (-7) 1420 | -10/Subcaves | Met a Zionite searching for "candidates" 2561 | -10/Subcaves | Identified exit to Materials 2561 | -10/Subcaves | Discovered exit to Materials (range 13) 2857 | -10/Subcaves | A swath of the cavern ceiling suddenly collapsed 3201 | -10/Subcaves | Core integrity fell below 50% 3227 | -10/Subcaves | Core integrity fell below 20% 3255 | -10/Subcaves | Lost 6 parts (1p2n1u2w) 3730 | -10/Subcaves | Visited 4L-MR0's lab 3765 | -10/Subcaves | Found Prototype Power Core 3765 | -10/Subcaves | Identified Meta Core 3767 | -10/Subcaves | Attached Meta Core, gained temporary slots: Propulsion, Utility, Weapon 3854 | -10/Subcaves | Discovered exit to Materials (range 8) 3995 | -10/Subcaves | Shifting Twisted Machinery released Sub. Monowheel 4072 | -10/Subcaves | Build established: Hacker-Tank 4296 | -10/Subcaves | Identified exit to Recycling 4296 | -10/Subcaves | Discovered exit to Recycling (range 16) 4425 | -10/Subcaves | Entered Recycling 4722 | -7/Recycling | Identified exit to Factory 4722 | -7/Recycling | Discovered exit to Factory (range 13) 4973 | -7/Recycling | Destroyed by Y-54 Guardian with Gatling Laser Last Messages --------------- 04437_ Sub. Machine Gun temporarily disabled. 04440_ Acquired 66 matter. 04562_ Acquired 59 matter. 04575_ Acquired Gauss Rifle. 04653_ Acquired 10 matter. 04722_ Connecting with Terminal... 04722_ EXIT=FOUND: FACTORY >>Layout(Zone) Retrieving Zone 5E layout... Downloaded map data. Feedback: System corruption (+1%). 04726_ ZWW/XFTXG2RRDTMIPFM#>TLAC 04750_ System corrupted: Matter fused (-9). 04905_ Connecting with Terminal... >>Index(Recycling Units) Found 6 recycling units. Downloaded coordinate data. >>Index(Scanalyzers) No scanalyzers found. 04971_ Y-54 Guardian springs to life. Map ----- +----------------------------------------------------+ | ?????"" ### #### ###### %%# | | ?????## ""# #??# #????# ]# | | ??????# Y"##############??# #????# ?? | | ??????# ""#???????????????# #????# #?? | | ??????# ###????????????####+###### ### | | ??????# #?????????????## # |# | | ????????????????????????# # [# | | ????????????????????????## # %# | | ?????????????????????????# + ### | | ?????????????????????????# # ### | | ?????????????????????????# # | | ?????????????????????????# # ### | | ?????????????????????????# # #?? | | ?????????????????????????########### #?? | | ??????????????????????????????#"""?#####?? | | ??????????????????????????????#"Y"#??????? | | ????????????????????????????###" "######## | | ????????????????????????????# | | ????????????????????????????# """ | | ????????????????????????????# """"" "T" | | ????????????????????????????# """"" | | ????????????????????#####???# """"" | | ????????????????????#]] #???# | | ??????# ###########] ]###########+###### | | ??????# r r | | ??????# @ | | ??????# Y | | ??????#########+##+## ###+########## | | ????????????????????### ???????? | | ??????????????????????# "" ?????? | | ??????????????????????# "Y """ ???? """ | | ??????????????????????# "" """ #??? """ | | ??????????????????????# """ #??? """" | | ??????????????????????# #??? """" | | ??????????????????????# ???? ""?? | | ??????????????????????# ????? "??? | | ????????????????????????########????? ??? | | ????????????????????????????????????? ??? | | ????????????????????????????????????? ???? | | ?????????????????????????????????????????? | | ?????????????????????????????????????????? | | ?????????????????????????????????????????? | | ?????????????????????????????????????????? | | ?????????????????????????????????????????? | | ?????????????????????????????????????????? | | ?????????????????????????????????????????? | | ?????????????????????????????????????????? | | ?????????????????????????????????????????? | | ?????????????????????????????????????????? | | ?????????????????????????????????????????? | +----------------------------------------------------+ Best States ------------- Heat Dissipation 25 Energy Generation 28 Energy Capacity 415 Matter Stores 300 Matter Capacity 300 Sight Range 16 Terrain Scan Range 14 Terrain Scan Density 10 Armor Coverage 100 Resistance: KI 35 Resistance: TH 45 Resistance: EX 35 Resistance: EM 35 Resistance: I 35 Resistance: S 35 Resistance: P 35 Core Shielding 20 Evasion (%) 55 Offensive Hacking 20 Item Schematics ----------------- None Robot Schematics ------------------ None Fabricated ------------ Nothing Repaired ---------- Nothing Alien Tech Used ----------------- None Achievements -------------- None Challenges ------------ None Game ------ Seed JammingSupersonicChainsword Manual? 0 Play Time 00:24:34 Cumulative 2117.6 hours Start 2025.07.16 @ 20:08:54 End 2025.07.16 @ 20:31:20 Sessions 1 Manual Loads 0 Difficulty Explorer Special Mode None Game No. 1050 Rogue 62 Adventurer 0 Explorer 988 Win Type - Total 11 Types 11/0/0/0/0/0/0/0/0/0 Lore% 61 Gallery% 72 Achievement% 64 Wizard Run 0 Options --------- Layout 1 ASCII 0 Keyboard 0 Movement Mouse Keybinds 0 Fullscreen 1 Font 48/Smallcaps Map View 55x35 Zoom Use 0% Tactical HUD 1 Map Filters NONE Filters NONE Steam 1 RUN: 12bd50fe-d699-4c84-b7fb-01b1ff67f729